Workbook

Sheet 总表
A1: 化学工程与环境学院2024年接收推荐免试攻读硕士学位研究生（含直博生）面试成绩汇总
A2: 序号 | B2: 姓名 | C2: 专业成绩 | D2: 英语成绩 | E2: 总成绩 | F2: 是否拟录取 | G2: 拟录取专业
A3: 1 | B3: 张伊蕊 | C3: 83.60 | D3: 86.60 | E3: =C3*0.7+D3*0.3 -> 84.50 | F3: 是 | G3: 本博一体培养‐081700 化学工程与技术（学术型）
A4: 2 | B4: 林楚媛 | C4: 88.40 | D4: 86.80 | E4: =C4*0.7+D4*0.3 -> 87.92 | F4: 是 | G4: 本博一体培养‐081700 化学工程与技术（学术型）
A5: 3 | B5: 杨雯婷 | C5: 85.60 | D5: 89.20 | E5: 86.68 | F5: 是 | G5: 本博一体培养‐081700 化学工程与技术（学术型）
A6: 4 | B6: 汪涵伊 | C6: 90.00 | D6: 90.00 | E6: 90.00 | F6: 是 | G6: 本博一体培养‐081700 化学工程与技术（学术型）
A7: 5 | B7: 界绪森 | C7: 89.80 | D7: 89.80 | E7: 89.80 | F7: 是 | G7: 本博一体培养‐081700 化学工程与技术（学术型）
A8: 6 | B8: 李宏凯 | C8: 85.60 | D8: 82.00 | E8: 84.52 | F8: 是 | G8: 学术型硕士‐081700 化学工程与技术
A9: 7 | B9: 马颖 | C9: 81.60 | D9: 77.40 | E9: 80.34 | F9: 是 | G9: 学术型硕士‐081700 化学工程与技术
A10: 8 | B10: 马雪 | C10: 86.20 | D10: 80.20 | E10: 84.40 | F10: 是 | G10: 学术型硕士‐081700 化学工程与技术
A11: 9 | B11: 程嘉欣 | C11: 85.40 | D11: 83.20 | E11: 84.74 | F11: 是 | G11: 学术型硕士‐081700 化学工程与技术
A12: 10 | B12: 刘思雨 | C12: 87.80 | D12: 87.00 | E12: 87.56 | F12: 是 | G12: 学术型硕士‐081700 化学工程与技术
A13: 11 | B13: 宋思雨 | C13: 85.00 | D13: 78.20 | E13: 82.96 | F13: 是 | G13: 学术型硕士‐081700 化学工程与技术
A14: 12 | B14: 张梦洋 | C14: 84.60 | D14: 84.40 | E14: 84.54 | F14: 是 | G14: 学术型硕士‐081700 化学工程与技术
A15: 13 | B15: 张芳 | C15: 85.20 | D15: 84.00 | E15: 84.84 | F15: 是 | G15: 学术型硕士‐081700 化学工程与技术
A16: 14 | B16: 刘杨 | C16: 86.40 | D16: 85.00 | E16: 85.98 | F16: 是 | G16: 学术型硕士‐081700 化学工程与技术
A17: 15 | B17: 单美怡 | C17: 84.60 | D17: 81.80 | E17: 83.76 | F17: 是 | G17: 学术型硕士‐081700 化学工程与技术
A18: 16 | B18: 卢宇晶 | C18: 83.60 | D18: 85.00 | E18: 84.02 | F18: 是 | G18: 学术型硕士‐081700 化学工程与技术
A19: 17 | B19: 廖安安 | C19: 84.40 | D19: 84.60 | E19: 84.46 | F19: 是 | G19: 学术型硕士‐081700 化学工程与技术
A20: 18 | B20: 刘璐 | C20: 83.80 | D20: 84.20 | E20: =C20*0.7+D20*0.3 -> 83.92 | F20: 是 | G20: 学术型硕士‐081700 化学工程与技术
A21: 19 | B21: 崔宁懿 | C21: 84.80 | D21: 85.80 | E21: 85.10 | F21: 是 | G21: 学术型硕士‐081700 化学工程与技术
A22: 20 | B22: 刘保宁 | C22: 79.60 | D22: 81.20 | E22: 80.08 | F22: 是 | G22: 学术型硕士‐081700 化学工程与技术
A23: 21 | B23: 吴紫鹏 | C23: 80.60 | D23: 82.80 | E23: 81.26 | F23: 是 | G23: 学术型硕士‐081700 化学工程与技术
A24: 22 | B24: 王鸿硕 | C24: 83.60 | D24: 84.20 | E24: 83.78 | F24: 是 | G24: 学术型硕士‐081700 化学工程与技术
A25: 23 | B25: 张小雨 | C25: 84.80 | D25: 85.80 | E25: 85.10 | F25: 是 | G25: 学术型硕士‐081700 化学工程与技术
A26: 24 | B26: 于瑛琦 | C26: 91.00 | D26: 91.00 | E26: 91.00 | F26: 是 | G26: 学术型硕士‐081700 化学工程与技术
A27: 25 | B27: 李春霖 | C27: 86.80 | D27: 87.80 | E27: 87.10 | F27: 是 | G27: 学术型硕士‐081700 化学工程与技术
A28: 26 | B28: 张春雨 | C28: 66.25 | D28: 66.25 | E28: 66.25 | F28: 是 | G28: 学术型硕士‐081700 化学工程与技术
A29: 27 | B29: 王郑钦 | C29: 71.25 | D29: 68.75 | E29: 70.50 | F29: 是 | G29: 学术型硕士‐081700 化学工程与技术
A30: 28 | B30: 齐嘉莹 | C30: 85.00 | D30: 86.25 | E30: 85.38 | F30: 是 | G30: 学术型硕士‐081700 化学工程与技术
A31: 29 | B31: 孙璐茜 | C31: 82.75 | D31: 83.00 | E31: 82.83 | F31: 是 | G31: 学术型硕士‐081700 化学工程与技术
A32: 30 | B32: 乔莹 | C32: 79.25 | D32: 80.00 | E32: 79.48 | F32: 是 | G32: 学术型硕士‐081700 化学工程与技术
A33: 31 | B33: 郑雨 | C33: 84.00 | D33: 80.75 | E33: 83.03 | F33: 是 | G33: 学术型硕士‐081700 化学工程与技术
A34: 32 | B34: 王小翠 | C34: 84.25 | D34: 81.25 | E34: 83.35 | F34: 是 | G34: 学术型硕士‐081700 化学工程与技术
A35: 33 | B35: 胡雨薇 | C35: 80.50 | D35: 77.25 | E35: =C35*0.7+D35*0.3 -> 79.53 | F35: 是 | G35: 学术型硕士‐081700 化学工程与技术
A36: 34 | B36: 谷菁柳 | C36: 82.60 | D36: 79.80 | E36: 81.76 | F36: 是 | G36: 学术型硕士‐081700 化学工程与技术
A37: 35 | B37: 曹道研 | C37: 75.60 | D37: 68.00 | E37: 73.32 | F37: 是 | G37: 学术型硕士‐081700 化学工程与技术
A38: 36 | B38: 肖美娜 | C38: 82.80 | D38: 80.20 | E38: 82.02 | F38: 是 | G38: 学术型硕士‐081700 化学工程与技术
A39: 37 | B39: 杨佳乐 | C39: 80.00 | D39: 77.20 | E39: 79.16 | F39: 是 | G39: 学术型硕士‐081700 化学工程与技术
A40: 38 | B40: 刘子祎 | C40: 76.75 | D40: 75.50 | E40: 76.38 | F40: 是 | G40: 学术型硕士‐081700 化学工程与技术
A41: 39 | B41: 史格林 | C41: 69.80 | D41: 72.60 | E41: 70.64 | F41: 是 | G41: 学术型硕士‐081700 化学工程与技术
A42: 40 | B42: 张朕城 | C42: 80.75 | D42: 76.50 | E42: 79.48 | F42: 是 | G42: 学术型硕士‐081700 化学工程与技术
A43: 41 | B43: 胡伟涛 | C43: 77.60 | D43: 79.60 | E43: 78.20 | F43: 是 | G43: 学术型硕士‐081700 化学工程与技术
A44: 42 | B44: 张偌雨 | C44: 82.50 | D44: 83.00 | E44: 82.65 | F44: 是 | G44: 学术型硕士‐081700 化学工程与技术
A45: 43 | B45: 赵静 | C45: 79.60 | D45: 81.20 | E45: 80.08 | F45: 是 | G45: 学术型硕士‐081700 化学工程与技术
A46: 44 | B46: 王洒 | C46: 76.50 | D46: 79.25 | E46: 77.33 | F46: 是 | G46: 学术型硕士‐081700 化学工程与技术
A47: 45 | B47: 毛晗 | C47: 85.60 | D47: 84.20 | E47: 85.18 | F47: 是 | G47: 学术型硕士‐081700 化学工程与技术
A48: 46 | B48: 张勇 | C48: 82.00 | D48: 83.25 | E48: 82.38 | F48: 是 | G48: 学术型硕士‐081700 化学工程与技术
A49: 47 | B49: 鲍怡帅 | C49: 85.40 | D49: 78.60 | E49: =C49*0.7+D49*0.3 -> 83.36 | F49: 是 | G49: 学术型硕士‐081700 化学工程与技术
A50: 48 | B50: 周忠康 | C50: 84.80 | D50: 78.80 | E50: 83.00 | F50: 是 | G50: 学术型硕士‐081700 化学工程与技术
A51: 49 | B51: 王晨宣 | C51: 82.40 | D51: 88.20 | E51: 84.14 | F51: 是 | G51: 学术型硕士‐081700 化学工程与技术
A52: 50 | B52: 刘睿扬 | C52: 87.00 | D52: 89.80 | E52: 87.84 | F52: 是 | G52: 学术型硕士‐081700 化学工程与技术
A53: 51 | B53: 杨嘉琦 | C53: 89.40 | D53: 89.40 | E53: 89.40 | F53: 是 | G53: 学术型硕士‐081700 化学工程与技术
A54: 52 | B54: 李雯珊 | C54: 87.20 | D54: 80.40 | E54: 85.16 | F54: 是 | G54: 学术型硕士‐081700 化学工程与技术
A55: 53 | B55: 杨丹 | C55: 88.60 | D55: 80.60 | E55: 86.20 | F55: 是 | G55: 学术型硕士‐081700 化学工程与技术
A56: 54 | B56: 胡伊荣 | C56: 84.60 | D56: 83.20 | E56: 84.18 | F56: 是 | G56: 学术型硕士‐081700 化学工程与技术
A57: 55 | B57: 陈修蕾 | C57: 84.83 | D57: 85.50 | E57: 85.03 | F57: 是 | G57: 学术型硕士‐081700 化学工程与技术
A58: 56 | B58: 刘恋 | C58: 83.83 | D58: 82.67 | E58: 83.48 | F58: 是 | G58: 学术型硕士‐081700 化学工程与技术
A59: 57 | B59: 张涵 | C59: 85.83 | D59: 83.33 | E59: 85.08 | F59: 是 | G59: 学术型硕士‐081700 化学工程与技术
A60: 58 | B60: 李志臣 | C60: 85.33 | D60: 71.83 | E60: 81.28 | F60: 是 | G60: 学术型硕士‐081700 化学工程与技术
A61: 59 | B61: 况佩蓉 | C61: 86.17 | D61: 83.33 | E61: 85.32 | F61: 是 | G61: 学术型硕士‐081700 化学工程与技术
A62: 60 | B62: 郝子召 | C62: 86.50 | D62: 84.33 | E62: 85.85 | F62: 是 | G62: 学术型硕士‐081700 化学工程与技术
A63: 61 | B63: 郭朝阳 | C63: 83.50 | D63: 84.67 | E63: 83.85 | F63: 是 | G63: 学术型硕士‐081700 化学工程与技术
A64: 62 | B64: 王嘉路 | C64: 87.33 | D64: 89.17 | E64: 87.88 | F64: 是 | G64: 学术型硕士‐081700 化学工程与技术
A65: 63 | B65: 王艺媛 | C65: 87.00 | D65: 90.40 | E65: =C65*0.7+D65*0.3 -> 88.02 | F65: 是 | G65: 学术型硕士‐083000 环境科学与工程
A66: 64 | B66: 杨彦钰 | C66: 88.20 | D66: 92.40 | E66: =C66*0.7+D66*0.3 -> 89.46 | F66: 是 | G66: 学术型硕士‐083000 环境科学与工程
A67: 65 | B67: 董奕云 | C67: 86.80 | D67: 89.00 | E67: =C67*0.7+D67*0.3 -> 87.46 | F67: 是 | G67: 学术型硕士‐083000 环境科学与工程
A68: 66 | B68: 陶凯为 | C68: 89.80 | D68: 86.00 | E68: =C68*0.7+D68*0.3 -> 88.66 | F68: 是 | G68: 学术型硕士‐083000 环境科学与工程
A69: 67 | B69: 邓逸凡 | C69: 88.20 | D69: 88.00 | E69: =C69*0.7+D69*0.3 -> 88.14 | F69: 是 | G69: 学术型硕士‐083000 环境科学与工程
A70: 68 | B70: 刘雯 | C70: 87.40 | D70: 88.20 | E70: 87.64 | F70: 是 | G70: 学术型硕士‐083000 环境科学与工程
A71: 69 | B71: 魏英俊 | C71: 88.20 | D71: 87.20 | E71: 87.90 | F71: 是 | G71: 学术型硕士‐083000 环境科学与工程
A72: 70 | B72: 纪媛媛 | C72: 88.80 | D72: 88.80 | E72: 88.80 | F72: 是 | G72: 学术型硕士‐083000 环境科学与工程
A73: 71 | B73: 周静珍 | C73: 88.60 | D73: 91.20 | E73: 89.38 | F73: 是 | G73: 学术型硕士‐083000 环境科学与工程
A74: 72 | B74: 李闫 | C74: 89.00 | D74: 87.20 | E74: 88.46 | F74: 是 | G74: 学术型硕士‐083000 环境科学与工程
A75: 73 | B75: 颜晶晶 | C75: 88.00 | D75: 89.80 | E75: 88.54 | F75: 是 | G75: 学术型硕士‐083000 环境科学与工程
A76: 74 | B76: 安柯银 | C76: 92.60 | D76: 89.00 | E76: 91.52 | F76: 是 | G76: 学术型硕士‐083000 环境科学与工程
A77: 75 | B77: 张毓芝 | C77: 89.40 | D77: 89.20 | E77: 89.34 | F77: 是 | G77: 学术型硕士‐083000 环境科学与工程
A78: 76 | B78: 王泽寰 | C78: 79.00 | D78: 81.60 | E78: 79.78 | F78: 是 | G78: 学术型硕士‐083000 环境科学与工程
A79: 77 | B79: 赖华玉 | C79: 85.80 | D79: 87.60 | E79: 86.34 | F79: 是 | G79: 学术型硕士‐083000 环境科学与工程
A80: 78 | B80: 王伊涵 | C80: 88.00 | D80: 89.20 | E80: 88.36 | F80: 是 | G80: 学术型硕士‐083000 环境科学与工程
A81: 79 | B81: 杜雨竹 | C81: 87.80 | D81: 87.60 | E81: 87.74 | F81: 是 | G81: 学术型硕士‐083000 环境科学与工程
A82: 80 | B82: 闫照笛 | C82: 87.80 | D82: 87.20 | E82: =C82*0.7+D82*0.3 -> 87.62 | F82: 是 | G82: 专业型硕士‐085602 化学工程
A83: 81 | B83: 杨如心 | C83: 58.40 | D83: 62.00 | E83: =C83*0.7+D83*0.3 -> 59.48 | F83: 否
A84: 82 | B84: 池双佑 | C84: 87.00 | D84: 87.40 | E84: 87.12 | F84: 否
A85: 83 | B85: 吴孟璇 | C85: 55.20 | D85: 57.60 | E85: 55.92 | F85: 否
A86: 84 | B86: 刘彤 | C86: 58.80 | D86: 59.20 | E86: 58.92 | F86: 否
